Cogmind - Beta 9 @@@ ROGUE MODE // 2019.10.28 @ 14:03:03 Player: MrPainting Result: Destroyed by as-49786 with Assembled Heavy Rifle Performance ------------- Evolutions (0) 0 Regions Visited (4) 800 Robots Destroyed (20) 100 Value Destroyed (278) 278 Prototype IDs (0) 0 Alien Tech Used (0) 0 Bonus (0) 0 TOTAL SCORE: 1178 Bonus ------- None Cogmind --------- Core Integrity 0/250 Matter 285/300 Energy 23/100 System Corruption 0% Temperature Cool (390) Location -9/Mines Parts ------- Power (1) Propulsion (2) Light Treads Utility (2) Large Storage Unit Improved Light Armor Plating Weapon (2) Plasma Flamer Inventory (10) Light Ion Engine Heat Sink High-capacity Matter Pod (200) Sensor Array Core Shielding Power Shielding Rocket Launcher Peak State ------------ Power (None) Propulsion Light Treads Utility Large Storage Unit Improved Light Armor Plating Weapon Beam Cannon Plasma Flamer Inventory Light Ion Engine Heat Sink High-capacity Matter Pod Sensor Array Core Shielding Power Shielding Rocket Launcher [Rating: 11] Favorites ----------- Power Ion Engine Engine Ion Engine Propulsion Light Treads Treads Light Treads Utility Large Storage Unit Storage Large Storage Unit Protection Light Armor Plating Weapon Beam Cannon Energy Gun EM Pulse Gun Energy Cannon Beam Cannon Ballistic Gun Heavy Assault Rifle Special Weapon Plasma Flamer Build | -11 -10 -10 -10 -9 ------- Run | Scr Mat Min Exi Min Slots Evolved . | . . . . . Power . | . . . . . Propulsion . | . . . . . Utility . | . . . . . Weapon . | . . . . . Parts Attached 14 | 5 1 5 . 3 Power 2 | 1 . 1 . . Engine 2 | 1 . 1 . . Core . | . . . . . Reactor . | . . . . . Propulsion 3 | 2 . 1 . . Treads 3 | 2 . 1 . . Leg . | . . . . . Wheel . | . . . . . Hover . | . . . . . Flight . | . . . . . Utility 3 | . 1 1 . 1 Device . | . . . . . Storage 1 | . 1 . . . Processor . | . . . . . Hackware . | . . . . . Protection 2 | . . 1 . 1 Artifact . | . . . . . Weapon 6 | 2 . 2 . 2 Energy Gun 2 | 2 . . . . Energy Cannon 2 | . . 2 . . Ballistic Gun 1 | . . . . 1 Ballistic Cannon . | . . . . . Launcher . | . . . . . Special Weapon 1 | . . . . 1 Impact Weapon . | . . . . . Slashing Weapon . | . . . . . Piercing Weapon . | . . . . . Special Melee Weapon . | . . . . . Unidentified Prototypes . | . . . . . Parts Lost 7 | . . 1 . 6 Power 1 | . . . . 1 Propulsion 1 | . . . . 1 Utility 1 | . . . . 1 Weapon 4 | . . 1 . 3 Highest Loss Streak 6 | . . 1 . 6 Average Slot Usage (%) 93 | . 79 95 100 85 Engine 13 | . 14 14 14 10 Treads 27 | . 28 28 28 24 Storage 12 | . 8 14 14 14 Protection 10 | . . 11 14 10 Energy Gun 7 | . 28 3 . . Energy Cannon 19 | . . 22 28 22 Naked Turns . | . . . . . Heaviest Build 30 | 9 25 30 30 30 Greatest Support 40 | 40 40 40 40 40 Greatest Overweight (x) 1 | . . . . 1 Average Overweight (x) . | . . . . . Largest Inventory Capacity 10 | 4 10 10 10 10 Average Capacity 9 | 4 7 10 10 10 Most Carried 10 | 4 4 10 10 9 Average Carried 7 | 1 2 8 9 8 Final Capacity 10 | . . . . 10 Final Carried 7 | . . . . 7 Class Distribution -------------------- 100% | Mutant Dominant Class ---------------- Mutant | -10/Materials Mutant | -10/Mines Mutant | -10/Exiles Mutant | -9/Mines Resources | -11 -10 -10 -10 -9 ----------- Run | Scr Mat Min Exi Min Matter Collected 515 | 151 178 176 . 10 Remotely . | . . . . . Salvage Created 676 | . 315 351 . 10 Parts 39 | . 21 18 . . Haulers Intercepted . | . . . . . Recyclers Shooed 1 | . 1 . . . Parts Field Recycled . | . . . . . Retrieved Matter . | . . . . . Parts Self-Destructed . | . . . . . Prevented . | . . . . . Kills | -11 -10 -10 -10 -9 ------- Run | Scr Mat Min Exi Min Combat Hostiles Destroyed 16 | . 7 8 . 1 Guns 9 | . 3 6 . . Cannons 3 | . . 2 . 1 AOE 4 | . 4 . . . Classes Destroyed 6 | . 5 . . 1 Builder 1 | . 1 . . . Recycler 2 | . 2 . . . Watcher 1 | . 1 . . . Swarmer 12 | . 6 6 . . Grunt 3 | . 1 2 . . Assembled 1 | . . . . 1 Best Kill Streak 9 | . 9 3 . 1 Combat Bots Only 6 | . 6 3 . 1 Max Kills in Single Turn 5 | . 5 2 . 1 Gunslinging 1 | . . 1 . . Exploded 3 | . 3 . . . Melee . | . . . . . Uniques/NPCs Destroyed . | . . . . . Combat | -11 -10 -10 -10 -9 -------- Run | Scr Mat Min Exi Min Damage Taken 1222 | . 253 231 . 738 Core 255 | . 22 66 . 167 Absorbed by Shields . | . . . . . Core Remaining (%) 100 | 100 . . . . Volleys Fired 50 | . 23 17 . 10 Largest 2 | . 2 2 . 2 Hottest 160 | . 80 120 . 160 Shots Fired 92 | . 46 27 . 19 Gun 68 | . 46 17 . 5 Cannon 22 | . . 10 . 12 Launcher . | . . . . . Special 2 | . . . . 2 Kinetic 5 | . . . . 5 Thermal 24 | . . 10 . 14 Explosive . | . . . . . Electromagnetic 63 | . 46 17 . . Robot Hit Streak 10 | . 7 10 . 3 Robot Miss Streak 4 | . 4 4 . 3 Penetration Max . | . . . . . Secondary Targets 1 | . . 1 . . Max Gunslinging Chain 1 | . . 1 . . Shots Hit Robots 49 | . 23 17 . 9 Core Hits 25 | . 11 11 . 3 Critical Hits . | . . . . . Critical Kills . | . . . . . Critical Parts Destroyed . | . . . . . Melee Attacks . | . . . . . Impact . | . . . . . Slashing . | . . . . . Piercing . | . . . . . Sneak Attacks . | . . . . . Combat Hostiles . | . . . . . Follow-up Attacks . | . . . . . Damage Inflicted 1011 | . 603 256 . 152 Guns 535 | . 356 133 . 46 Cannons 229 | . . 123 . 106 Explosions 247 | . 247 . . . Melee . | . . . . . Ramming . | . . . . . Kinetic 46 | . . . . 46 Thermal 476 | . 247 123 . 106 Explosive . | . . . . . Electromagnetic 489 | . 356 133 . . Impact . | . . . . . Slashing . | . . . . . Piercing . | . . . . . Highest Corruption . | . . . . . Average Corruption . | . . . . . Corruption Purged . | . . . . . Overload Shots . | . . . . . Overflow Damage . | . . . . . Projectiles . | . . . . . Explosions . | . . . . . Melee . | . . . . . Knockbacks . | . . . . . Impact . | . . . . . Kinetic . | . . . . . Secondary . | . . . . . Self-Inflicted Damage 40 | . 40 . . . Shots 1 | . 1 . . . Rammed . | . . . . . Targets Rammed . | . . . . . Kicked . | . . . . . Crushed . | . . . . . Highest Temperature 390 | . 206 234 . 390 Average Temperature 125 | . 111 68 . 247 Received Heat Transfer 231 | . 24 27 . 180 Siege Activations . | . . . . . Robots Corrupted 1 | . 1 . . . Combat Hostiles . | . . . . . Parts Fried 2 | . 2 . . . Impact Corruptions . | . . . . . Robots Melted . | . . . . . Combat Hostiles . | . . . . . Parts Melted 1 | . . 1 . . Heat Transferred 831 | . 350 259 . 222 Parts Sabotaged . | . . . . . Parts Stolen . | . . . . . Parts Stripped . | . . . . . Power Chain Reactions 3 | . 3 . . . Missiles Intercepted . | . . . . . Alert | -11 -10 -10 -10 -9 ------- Run | Scr Mat Min Exi Min Peak Influence 271 | . 235 271 . . Average Influence 111 | . 76 139 . . Maximum Alert Level 1 | . 1 1 . . Low Security (%) 68 | . . . . . Level 1 31 | . . . . . Level 2 . | . . . . . Level 3 . | . . . . . Level 4 . | . . . . . Level 5 . | . . . . . High Security . | . . . . . Max Security . | . . . . . Squads Dispatched 1 | . 1 . . . Investigation . | . . . . . Extermination . | . . . . . Reinforcement 1 | . 1 . . . Assault . | . . . . . Garrison . | . . . . . Intercept . | . . . . . Construction Impeded . | . . . . . Haulers Reinforced . | . . . . . Stealth | -11 -10 -10 -10 -9 --------- Run | Scr Mat Min Exi Min Distress Signals . | . . . . . Communications Jammed . | . . . . . Distress Signals . | . . . . . Times Spotted 42 | . 12 8 . 22 Peak Tracking Total 15 | . 7 3 . 15 Tactical Retreats 2 | . 1 . . 1 Traps | -11 -10 -10 -10 -9 ------- Run | Scr Mat Min Exi Min Traps Triggered . | . . . . . Indirectly . | . . . . . Trap Hack Attempts . | . . . . . Triggered . | . . . . . Disarmed . | . . . . . Reprogrammed . | . . . . . Reused . | . . . . . Traps Extracted . | . . . . . Installed . | . . . . . Triggered . | . . . . . Machines | -11 -10 -10 -10 -9 ---------- Run | Scr Mat Min Exi Min Machines Disabled 1 | . 1 . . . Max in Single Turn 1 | . 1 . . . Machines Sabotaged . | . . . . . Garrisons Compromised . | . . . . . Overloaded Fab Kills . | . . . . . Fab Network Shutdowns . | . . . . . Hacking | -11 -10 -10 -10 -9 --------- Run | Scr Mat Min Exi Min Machines Accessed 1 | . 1 . . . Terminals 1 | . 1 . . . Fabricators . | . . . . . Repair Stations . | . . . . . Recycling Units . | . . . . . Scanalyzers . | . . . . . Garrison Access . | . . . . . Total Hacks 2 | . 2 . . . Successful 2 | . 2 . . . Failed . | . . . . . Catastrophic . | . . . . . Database Lockouts . | . . . . . Manual 2 | . 2 . . . Terminals 2 | . 2 . . . Fabricators . | . . . . . Repair Stations . | . . . . . Recycling Units . | . . . . . Scanalyzers . | . . . . . Garrison Access . | . . . . . Terminal Hacks . | . . . . . Fabricator Hacks . | . . . . . Repair Station Hacks . | . . . . . Recycling Unit Hacks . | . . . . . Scanalyzer . | . . . . . Garrison Access Hacks . | . . . . . Unauthorized Hacks 4 | . 4 . . . Terminals 2 | . 2 . . . Track 1 | . 1 . . . Botnet 1 | . 1 . . . Fabricators . | . . . . . Repair Stations . | . . . . . Recycling Units . | . . . . . Scanalyzers . | . . . . . Garrison Access . | . . . . . Data Cores Recovered . | . . . . . Used . | . . . . . Hacking Detections 1 | . 1 . . . Full Trace Events . | . . . . . Feedback Events . | . . . . . Feedback Blocked . | . . . . . Robot Schematics Acquired . | . . . . . Robots Built . | . . . . . Matter . | . . . . . Time . | . . . . . Total Robot Build Rating . | . . . . . Part Schematics Acquired . | . . . . . Parts Built . | . . . . . Matter . | . . . . . Time . | . . . . . Total Part Build Rating . | . . . . . Parts Repaired . | . . . . . Time . | . . . . . Parts Recycled . | . . . . . Recycled Matter . | . . . . . Retrieved Matter . | . . . . . Retrieved Components . | . . . . . Parts Scanalyzed . | . . . . . Part Schematics Acquired . | . . . . . Parts Damaged . | . . . . . Bothacking | -11 -10 -10 -10 -9 ------------ Run | Scr Mat Min Exi Min Used RIF Installer . | . . . . . Robots Hacked . | . . . . . Non-combat . | . . . . . Combat . | . . . . . Robot Hacks Applied . | . . . . . Relay Couplers Released . | . . . . . Robots Rewired . | . . . . . Allies Hacked . | . . . . . Hacks Repelled . | . . . . . Allies | -11 -10 -10 -10 -9 -------- Run | Scr Mat Min Exi Min Total Allies . | . . . . . Largest Group . | . . . . . Highest-Rated Group . | . . . . . Highest-Rated Ally . | . . . . . Total Orders . | . . . . . Ally Attacks . | . . . . . Total Damage . | . . . . . Kills . | . . . . . Allies Corrupted . | . . . . . Allies Melted . | . . . . . Intel | -11 -10 -10 -10 -9 ------- Run | Scr Mat Min Exi Min Robot Analysis Total . | . . . . . Derelict Logs Recovered . | . . . . . Drone Launches . | . . . . . Drone Recoveries . | . . . . . Exploration | -11 -10 -10 -10 -9 ------------- Run | Scr Mat Min Exi Min Turns Passed 1546 | 62 262 872 279 71 Spaces Moved 838 | 42 115 483 175 23 Core 14 | 14 . . . . Treads 824 | 28 115 483 175 23 Legs . | . . . . . Wheels . | . . . . . Hover . | . . . . . Flight . | . . . . . Fastest Speed 50 | 50 160 160 160 160 Average Speed 158 | 123 160 160 160 161 Slowest Speed 180 | 160 160 160 160 180 Overloaded Moves . | . . . . . Propulsion Burnouts . | . . . . . Robots Hopped . | . . . . . Cave-ins Triggered . | . . . . . Exploration Rate (%) 40 | 4 37 92 54 15 Regions Visited 4 Branch Regions 3 Pre-discovered Areas 1 | . . 1 . . Known Exits Taken . | . . . . . Unknown Exits Taken 4 | 1 1 1 1 . Scrap Searched 1 | . . 1 . . Spaces Dug . | . . . . . Terrain Destroyed 5 | . 5 . . . Melee . | . . . . . Projectile . | . . . . . AOE 5 | . 5 . . . Actions | -11 -10 -10 -10 -9 --------- Run | Scr Mat Min Exi Min Total 968 | 52 148 556 175 37 Wait 39 | . 7 32 . . Move 834 | 41 114 482 174 23 Hop . | . . . . . Pick Up 24 | 6 2 15 . 1 Fast Attach 1 | 1 . . . . Attach 10 | 4 1 2 . 3 Detach . | . . . . . Swap 3 | . . 3 . . Drop 7 | . 1 5 1 . Fire 50 | . 23 17 . 10 Melee . | . . . . . Ram . | . . . . . Kick . | . . . . . Crush . | . . . . . Escape Stasis . | . . . . . Rewire . | . . . . . Trap . | . . . . . Miscellaneous . | . . . . . Route ------- -11/Scrapyard -10/Materials -10/Mines (discovered 3 exits: [*Mat x2] / [*Exi]) -10/Exiles -9/Mines History --------- Turn | Location | Event 7 | -11/Scrapyard | Discovered new exit (range 16) 63 | -11/Scrapyard | Entered Materials 288 | -10/Materials | Discovered new exit (range 12) 311 | -10/Materials | Build established: Mutant 325 | -10/Materials | Entered Mines 444 | -10/Mines | Joined a pair of Derelicts in attacking an 0b10 outpost 617 | -10/Mines | Discovered new exit (range 15) 676 | -10/Mines | Received a Rocket Launcher from a helpful Derelict 686 | -10/Mines | Discovered new exit (range 13) 925 | -10/Mines | Learned location of Storage (-9) 1166 | -10/Mines | A weapon hastily lodged in a ceiling crevice suddenly fell to the ground 1190 | -10/Mines | Deemed a non-threat by the Exiles lab entrance 1190 | -10/Mines | Discovered new exit (range 5) 1197 | -10/Mines | Entered Exiles 1197 | -10/Exiles | Found Exiles lab abandoned 1454 | -10/Exiles | Discovered new exit (range 14) 1476 | -10/Exiles | Entered Mines 1495 | -9/Mines | Assembled infested the area 1500 | -9/Mines | Assisted by a Guerilla fighting off Assembled 1520 | -9/Mines | Core integrity fell below 50% 1539 | -9/Mines | Core integrity fell below 20% 1547 | -9/Mines | Destroyed by as-49786 with Assembled Heavy Rifle Last Messages --------------- 01535_ Acquired 10 matter. 01536_ The unstable cave ceiling collapses. 01536_ K-01 Serf collects debris. 01537_ The unstable cave ceiling collapses. 01539_ K-01 Serf collects debris. 01539_ Acquired Imp. Light Armor Plating. 01539_ Hvy. Assault Rifle destroyed. 01540_ The unstable cave ceiling collapses. 01541_ U-05 Engineer lays Concrete. 01542_ as-16161 destroyed. 01542_ U-05 Engineer lays Concrete. 01544_ Beam Cannon destroyed. 01545_ as-05860 sneak attacks. 01545_ K-01 Serf destroyed. 01545_ U-05 Engineer builds a Wall. 01546_ as-65363 sneak attacks. 01546_ U-05 Engineer system corrupted by crushing effect. 01547_ U-05 Engineer system terminally corrupted. 01547_ The unstable cave ceiling collapses. 01547_ Lgt. Ion Engine crushed. Map ----- +----------------------------------------------------+ | ???????????????????### ##????? | | ??????????????????## #????? | | ?????????????????## #????? | | ????????????????## #????? | | ???????????????## #????? | | ???????????????# #?????? | | ??????????????## ##?????? | | ???????????? ##??????? | | ?????????????### ##??????? | | ???????????????## ## #??????? | | ????????????????#???#### #??????? | | ???????????????????????## #??????? | | ????????????????????????# k #??????? | | ????????????????????????# ##?????? | | ????????????????????????# #?????? | | ????????????????????????## #?????? | | ?????????????????????????##% #?????? | | ??????????????????????##### ##?????? | | ??????????????????????# % !##??????? | | ???????????????????#### *%##??????? | | ??????????????# a = #??????? | | ???????????????????##### % ! ##?????? | | ??????????????????????## #=%= #?????? | | ??????????????????????# #%! ##????? | | ??????????????????????# %! # #????? | | ??????????????????????# @% #????? | | ??????????????????????# # #????? | | ????????????????????# #????? | | ???????????????? % a # #????? | | ?????????????# % ##????? | | ?????????????%* # # ##?????? | | ????????????? ## # ##??????? | | ???????????? a ##?#### ????????? | | ????????????? #?????? ????????? | | ????????????? ??????? | ???????? | | ??????????????## ???????? %! ???????? | | ???????????????#????????? ???????? | | ???????????????????????? ###???????? | | ???????????????????????? #??????????? | | ????????????????????????##???????????? | | ?????????????????????????????????????? | | ?????????????????????????????????????? | | ?????????????????????????????????????? | | ?????????????????????????????????????? | | ?????????????????????????????????????? | | ?????????????????????????????????????? | | ?????????????????????????????????????? | | ?????????????????????????????????????? | | ?????????????????????????????????????? | | ?????????????????????????????????????? | +----------------------------------------------------+ Best States ------------- Heat Dissipation 25 Energy Generation 10 Energy Capacity 250 Matter Stores 300 Matter Capacity 300 Sight Range 16 Terrain Scan Density 10 Armor Coverage 150 Evasion (%) 50 Recoil Reduction 2 Item Schematics ----------------- None Robot Schematics ------------------ None Fabricated ------------ Nothing Alien Tech Used ----------------- None Achievements -------------- None Challenges ------------ None Game ------ Seed DerelictShadingScreen Manual? 0 Play Time 00:10:15 Cumulative 41.0 hours Start 2019.10.28 @ 13:53:52 End 2019.10.28 @ 14:03:03 Sessions 1 Manual Loads 0 Difficulty Rogue Special Mode None Game No. 66 Rogue 66 Adventurer 0 Explorer 0 Win Type - Total 0 Types 0/0/0/0/0/0/0 Lore% 27 Gallery% 32 Achievement% 26 Wizard Run 0 Options --------- ASCII 0 Keyboard 0 Movement Mouse Keybinds 0 Fullscreen 1 Font 18/SmallcapsGlow Map View 76x50 Tactical HUD 1 Map Filters NONE Filters NONE Steam 1 RUN: 8df7fea2-02c2-41bd-a2ec-11c4ae3334ae